Workbook

Sheet Makrokomanda1

Sheet Sheet1
F1: 3 pirkimo dokumentų priedas
A2: P A S I Ū L Y M A S
A3: VIENKARTINĖS MEDICINOS PRIEMONĖS INTERVENCINEI KARDIOLOGIJAI
A4: Pastabos:
A5: (1)Visoms nurodytoms konkrečioms medžiagoms ir/ar konkretiems prekių pavadinimams taikoma „arba lygiavertis“. Tiekėjas, siūlantis prekę, pasižyminčią lygiavertėmis savybėmis, privalo patikimomis priemonėmis įrodyti, kad siūloma prekė yra lygiavertė ir visiškai atitinka techninėje specifikacijoje keliamus reikalavimus
A6: (2) Visų prekių vertinimui pateikiami bandomieji pavyzdžiai
A7: (3) Tiekėjas privalo užtikrinti priemones naudosiančių kardiologų apmokymą iš gamintojo atstovo
A9: P.d. Nr. | B9: Pavadinimas | C9: Reikalavimai | D9: Mato vnt. | E9: Orient.kiekis | F9: Mato vnt. įkainis be PVM, Eur | G9: PVM dydis, % | H9: Mato vnt. įkainis su PVM, Eur | I9: Orientacinė suma be PVM, Eur | J9: Siūlomos priemonės gamintojas
A10: 1. | B10: PTKA balionas rutininėms procedūroms | C10: Gero slydimo – spec. hidrofilinė danga. Diametras: vidinė dalis ne daugiau 2,1 F, distalinė dalis – ne daugiau 2,4 F. Nominalus slėgis ne mažiau 8 atm, baliono sprogimo slėgis (RBP) - ne mažiau 14 atm. Balionėliai įvairių ilgių nuo 6 mm iki 30 mm ir įvairių diametrų nuo 1,2 mm iki 5,0 mm (diametro žingsnis 0,25 mm). Balioninio kateterio naudojamas ilgis ne mažiau 145 cm. Balionas pagamintas iš atsparios abrazijoms Pebax ar lygiavertės medžiagos. Lazeriu šlifuota proksimali baliono dalis. Universalaus panaudojimo - plėtimams ir stentavimui. Balioninio kateterio išsitempimas turi būti tiksliai kontroliuojamas, baliono diametro kitimas iki 10 procentų, žemo distalinio profilio ties lanksčiais rentgeno kontrastiniais markeriais. Pritaikyta 0,014 colio diametro vielai. | D10: vnt. | E10: 10000 | F10: 61.54 | G10: 0.05 | H10: =F10*1.05 -> 64.617 | I10: =E10*F10 -> 615400 | J10: Alvimedica gamintojas, Invader PTCA balionas
F11: PVM suma, Eur | I11: =I12-I10 -> 30770
F12: Orientacinė suma su PVM, Eur | I12: =E10*H10 -> 646170
B13: Orientacinė suma su PVM, Eur žodžiais: | D13: =suma_zodziais(I12) -> Šeši šimtai keturiasdešimt šeši tūkstančiai vienas šimtas septyniasdešimt eurų 00 ct
A14: 2. | B14: PTKA balionas (monorail tipo) | C14: Gero slydimo - silx ar lygiavertės medžiagos hidrofilinė danga. Diametras: vidinė dalis ne daugiau 1,7 F, distalinė dalis - ne daugiau 2,6 F. Nominalus slėgis ne mažiau 6 atm, baliono sprogimo slėgis (RBP) - ne mažiau 16 atm, MBP - ne mažiau 22 atm. Balionėliai įvairių ilgių nuo 10 mm iki 40 mm (visiems diametrams) ir įvairių diametrų nuo 1,25 mm iki 4,5 mm (diametro žingsnis 0,25 mm). Balioninio kateterio naudojamas ilgis ne mažesnis kaip 145 cm. Baliono medžiaga pebax ar lygiavertė atspari abrazijoms, lazeriu šlifuota proksimali baliono dalis. Balioninio kateterio išsitempimas turi būti tiksliai kontroliuojamas, baliono diametro kitimas iki 10 proc. Žemo distalinio profilio ties distaliniu markeriu. Pritaikyta 0,014 colio diametro vielai. | D14: vnt. | E14: 10000 | F14: 47.47 | G14: 0.05 | H14: =F14*1.05 -> 49.8435 | I14: =E14*F14 -> 474700 | J14: Conic Vascular gamintojas, Clever balionas
F15: PVM suma, Eur | I15: =I16-I14 -> 23735
F16: Orientacinė suma su PVM, Eur | I16: =E14*H14 -> 498435
B17: Orientacinė suma su PVM, Eur žodžiais: | D17: =suma_zodziais(I16) -> Keturi šimtai devyniasdešimt aštuoni tūkstančiai keturi šimtai trisdešimt penki eurai 00 ct
A18: 3. | B18: PTKA balionas vingiuotoms kraujagyslėms ir distalinėms, stenozėms (monorail tipo) | C18: Gero slydimo - dura-trac ar lygiavertės medžiagos hidrofilinė danga. Žemo profilio: vidinė dalis ne daugiau 1,9 F, distalinė dalis – ne daugiau 2,6 F, praėjimo profilis (crossing profile) nuo 0,5 mm. Nominalus slėgis ne mažiau 8 atm, RBP- ne mažiau 14 atm. Balionėliai įvairių ilgių nuo 6 mm iki 30 mm ir įvairių diametrų nuo 1,25 mm iki 4,0 mm (diametro žingsnis 0,25mm). Balioninio kateterio naudojamas ilgis ne mažiau 138 cm. Baliono medžiaga Fulkrum ar lygiavertė atspari abrazijoms, lazeriu šlifuota proksimali baliono dalis. Balioninio kateterio išsitempimas turi būti tiksliai kontroliuojamas, baliono diametro kitimas max. 10-15 procentų. Pritaikyta 0,014 colio diametro vielai. | D18: vnt. | E18: 10000 | F18: 47.47 | G18: 0.05 | H18: =F18*1.05 -> 49.8435 | I18: =E18*F18 -> 474700 | J18: Conic Vascular gamintojas, Clever balionas
F19: PVM suma, Eur | I19: =I20-I18 -> 23735
F20: Orientacinė suma su PVM, Eur | I20: =E18*H18 -> 498435
B21: Orientacinė suma su PVM, Eur žodžiais: | D21: =suma_zodziais(I20) -> Keturi šimtai devyniasdešimt aštuoni tūkstančiai keturi šimtai trisdešimt penki eurai 00 ct
A22: 4. | B22: PTKA balionas žemo profilio rutininėms procedūroms (monorail tipo) | C22: Monorail tipo, gero slydimo – bioslide ar lygiavertė hidrofilinė danga. Balionėlio diametrai nuo 1,5 mm iki 6,0 mm, ilgiai nuo 8 mm iki 30 mm visiems balionų diametrams išskyrus 1,5 mm diametro balionus. Kateterio ilgis ne mažiau 140 cm. Kateterio diametras: proksimalinė dalis ne daugiau 1,8 F, distalinė dalis ne daugiau 2,4 F. Nominalus baliono slėgis (NBP) ne mažiau 6 atm, RBP ne mažiau 14 atm, maksimalus slėgis (MBP) ne mažiau 19 atm. Baliono medžiaga leap/pabex ar lygiavertė atspari abrazijoms. Baliono diametras priklausomai nuo slėgio (NBP – RBP) kinta ne mažiau 13 procentų. Pritaikyti 0,014 colio diametro PTKA vielai. Du rentgeno kontrastiniai markeriai, išskyrus 1,5 mm diametro balionėlius (vienas markeris centre). Kateterio galiukas lankstus, trumpas, kūgio formos, įėjimo profilis (Lesion entry profile) ne daugiau 0,017 colio. | D22: vnt. | E22: 10000 | F22: 47.47 | G22: 0.05 | H22: =F22*1.05 -> 49.8435 | I22: =E22*F22 -> 474700 | J22: Conic Vascular gamintojas, Clever balionas
F23: PVM suma, Eur | I23: =I24-I22 -> 23735
F24: Orientacinė suma su PVM, Eur | I24: =E22*H22 -> 498435
B25: Orientacinė suma su PVM, Eur žodžiais: | D25: =suma_zodziais(I24) -> Keturi šimtai devyniasdešimt aštuoni tūkstančiai keturi šimtai trisdešimt penki eurai 00 ct
A26: 5. | B26: PTKA balionas kalcifikuotoms stenozėms (monorail tipo) | C26: Kateterio kūnas gerai valdomas – plieninis ar lygiavertės medžiagos. Lanksti iki 15 cm ilgio jungiančioji dalis tarp kūno ir distalinės dalies - leidžia gerai praeiti vingiuotas ir distalines stenozes. Kateterio kūnas atsparus persilenkimui, sustiprinta pereinančioji baliono kūno dalis tarp distalinio ir proksimalinio segmento. Dviguba danga (paties kateterio hidrofobinė, balionėlio - hidrofilinė) užtikrina gerą valdymą ir praeinamumą. Diametras: proksimali dalis ne daugiau 1,8 F, distalinė dalis – ne daugiau 2,7 F. Nominalus slėgis ne mažiau 12 atm, RBP - ne mažiau 20 atm. Galiukas lankstus, trumpas ir kūgio formos, lazeriu šlifuotas. Balioninio kateterio išsitempimas turi būti tiksliai kontroliuojamas, baliono diametro kitimas 3-4%. Įvairių diametrų nuo 2,0 mm iki 5,0 mm ir ilgių nuo 10mm iki 20 mm. Bendras darbinis ilgis ne mažiau 140 cm. Žemo distalinio profilio ties distaliniu markeriu. Pritaikyta 0,014 colio diametro vielai. | D26: vnt. | E26: 10000
F27: PVM suma, Eur
F28: Orientacinė suma su PVM, Eur
B29: Orientacinė suma su PVM, Eur žodžiais:
A30: 6. | B30: PTKA balionas rutininėms procedūroms (OTW tipo) | C30: Dviguba danga: kateterio - hidrofobinė, balionėlio - hidrofilinė. Diametras: proksimali dalis ne daugiau 3,2 F, distalinė dalis – ne daugiau 2,6 F. Nominalus slėgis ne mažiau 8 atm, RBP - ne mažiau 14 atm. Kateterio galiukas trumpas, lankstus, 0,016 colio dydžio. Įvairių diametrų nuo 1,25mm iki 4,0 mm ir ilgių nuo 6 mm iki 30 mm. Bendras darbinis ilgis ne mažiau kaip 140 cm. Pritaikyta 0,014 colio diametro vielai. | D30: vnt. | E30: 1000 | F30: 69.48 | G30: 0.05 | H30: =F30*1.05 -> 72.954 | I30: =E30*F30 -> 69480 | J30: Conic Vascular gamintojas, Milvus OTW 3,2 F balionas
F31: PVM suma, Eur | I31: =I32-I30 -> 3474
F32: Orientacinė suma su PVM, Eur | I32: =E30*H30 -> 72954
B33: Orientacinė suma su PVM, Eur žodžiais: | D33: =suma_zodziais(I32) -> Septyniasdešimt du tūkstančiai devyni šimtai penkiasdešimt keturi eurai 00 ct
A34: 7. | B34: Post-diliatacinis PTKA balionas ypač kalcifikuotoms stenozėms | C34: ,,Non compliant“ (NC) tipo PTKA balionai. Gero slydimo - speciali hidrofilinė danga. Kateterio proksimali korpuso dalis iš vientisos medžiagos (hypotube). Naudojami su 0,014 colio PTKA vielomis. Proksimalinė dalis ne daugiau1,9 F, distalinė ne daugiau 2,7 F. Baliono kampai: 16±1° - distalinė dalies, 25±1°-proksimalinė dalis. Nominalus slėgis ne mažiau 14 atm, RBP ne mažiau 20 atm, MBP ne mažiau 26 atm. 2 rentgeno kontrastiniai markeriai 1,5 mm ir 2 mm diametro balionams. Didelės rezistencijos kateterio korpuso užlinkimui, sustiprintas kateterio distalinės/proksimalinės dalies jungties segmentas. Balionai įvairių ilgių nuo 6 mm iki 30 mm ir diametrų nuo 2,00 mm iki 4,00 mm. Baliono medžiaga Duralyn ar lygiavertė atspari abrazijoms, kateterio naudojamas ilgis ne mažiau 145 cm. Kateterio galiukas lankstus, trumpas, kūgio formos, įėjimo profilis ne daugiau 0,017 colio. | D34: vnt. | E34: 5000
F35: PVM suma, Eur
F36: Orientacinė suma su PVM, Eur
B37: Orientacinė suma su PVM, Eur žodžiais:
A38: 8. | B38: PTKA balionas rutininėms procedūroms (NC monorail tipo) | C38: Kateterio kūnas gerai valdomas – plieninis ar lygiavertės medžiagos. Dviguba danga – paties kateterio – hidrofobinė, balionėlio – hidrofilinė, užtikrina gerą valdymą ir praeinamumą. Diametras: proksimali dalis ne daugiau 1,7 F, distalinė dalis – ne daugiau 2,7 F. Nominalus slėgis ne mažiau 10 atm, RBP - ne mažiau 20 atm, MBP - ne mažiau 27 atm. Balioninio kateterio išsitempimas turi būti tiksliai kontroliuojamas, baliono diametro kitimas iki 5 procentų. Įvairių diametrų nuo 2,5 mm iki 4,0 mm (diametro žingsnis 0,25 mm) ir ilgių nuo 10 mm iki 30 mm. Bendras darbinis ilgis ne mažiau kaip 140 cm. Pritaikyta 0,014 colio diametro vielai. | D38: vnt. | E38: 5000
F39: PVM suma, Eur
F40: Orientacinė suma su PVM, Eur
B41: Orientacinė suma su PVM, Eur žodžiais:
A42: 9. | B42: NC tipo balioninis angioplastikos kateteris | C42: Gero slydimo – distalinė sistemos dalis padengta spec. hidrofiline danga. Diametras: proksimalinė dalis ne daugiau 2 Fr, distalinė dalis – ne daugiau 2,6 F. Nominalus slėgis ne mažiau 10 atm, RBP- ne mažiau 18 - 20 atm. Du rentgeno kontrastiniai markeriai. Balionėlių ilgiai nuo 6 mm iki 20 mm, diametrai nuo 2,25 mm iki 5,00 mm. Balioninio kateterio naudojamas ilgis ne mažesnis kaip 145 cm. Kontroliuojamo išsiplėtimo. Žemo distalinio profilio, galiuko įėjimo profilis ne storesnis nei 0,42 mm. Pritaikyta 0,014 colio diametro vielai. | D42: vnt. | E42: 5000
F43: PVM suma, Eur
F44: Orientacinė suma su PVM, Eur
B45: Orientacinė suma su PVM, Eur žodžiais:
A46: 10. | B46: PTKA balionas stambioms kraujagyslėms ir AKJ plėsti | C46: Gero slydimo – spec. hidrofilinė danga. Nominalus slėgis ne mažiau 8 atm, RBP ne mažiau 16 atm. Balionėliai įvairių ilgių, nuo 15 mm iki 40 mm ir įvairių diametrų nuo 4,5 mm iki 7 mm (diametro žingsnis 0,5 mm). Balioninio kateterio naudojamas ilgis ne mažiau 140 cm, proksimalus kateterio diametras ne daugiau 2,3F, distalinis ne daugiau 3,5F. Balioninio kateterio išsitempimas turi būti tiksliai kontroliuojamas, baliono diametro kitimas iki 10 procentų. Žemo distalinio profilio ties lanksčiais rentgeno kontrastiniais markeriais. Pritaikyta 0,014 colio diametro vielai. | D46: vnt. | E46: 2000 | F46: 58.46 | G46: 0.05 | H46: =F46*1.05 -> 61.383 | I46: =E46*F46 -> 116920 | J46: Conic Vascular gamintojas, NC Clever balionas
F47: PVM suma, Eur | I47: =I48-I46 -> 5846
F48: Orientacinė suma su PVM, Eur | I48: =E46*H46 -> 122766
B49: Orientacinė suma su PVM, Eur žodžiais: | D49: =suma_zodziais(I48) -> Vienas šimtas dvidešimt du tūkstančiai septyni šimtai šešiasdešimt šeši eurai 00 ct
A50: 11. | B50: Labai aukšto slėgio NC tipo balioninis angioplastikos kateteris | C50: Dvigubo sluoksnio baliono konstrukcija, tolygus baliono plėtimasis. Du rentgeno kontrastiniai markeriai baliono galuose. Diametras nuo 2,0 mm iki 3,0 mm, ilgis nuo10 mm iki 20 mm. Darbinis slėgis ne mažiau 29 atm. | D50: vnt. | E50: 300
F51: PVM suma, Eur
F52: Orientacinė suma su PVM, Eur
B53: Orientacinė suma su PVM, Eur žodžiais:
A54: 12. | B54: PTKA viela rutininėms procedūroms | C54: Ilgis ne mažiau 175 cm, 0,014 colio diametro. Vienos dalies konstrukcija dengta teflonu. 3±1 cm ilgio lankstus ir atraumatinis rentgeno kontrastinis galiukas. Viela lanksti ir gero praeinamumo. Tiesios ir J formos. Geras sukimo perdavimas. “Standard”, “Soft”, “Super Soft’ ir “Floppy” tipo. | D54: vnt. | E54: 8000
F55: PVM suma, Eur
F56: Orientacinė suma su PVM, Eur
B57: Orientacinė suma su PVM, Eur žodžiais:
A58: 13. | B58: PTKA viela be markerių, polimeriniu galu | C58: Polimerinė vientiso distalinio galo konstrukcija. Vienos dalies konstrukcija, geras sukimo perdavimas. Diametras 0,014 colio. Kietumo įvairovė: standard, intermediate, floppy, soft, super soft. Ilgis nuo 185 cm iki 300 cm. 2±0,5 cm ilgio lankstus ir atraumatinis rentgeno kontrastinis galiukas. Geras rentgeno kontrastavimas. Galo forma: J ir tiesi. Universalios: tinkančios stentavimui ir plėtimui. | D58: vnt. | E58: 7000
F59: PVM suma, Eur
F60: Orientacinė suma su PVM, Eur
B61: Orientacinė suma su PVM, Eur žodžiais:
A62: 14. | B62: PTKA viela be markerių, spiraliniu galu | C62: Vientisa tolygiai smailėjanti šerdies konstrukcija su rentgeno kontrastinėmis vijomis distaliniame gale. Vielos šerdis pagaminta iš plieno lydinio, tvirtesnio nei plienas. Dengtos polimeru, 0,014 colio diametro, kietumo įvairovė, vielos galiuko veikimo jėga (support) nuo 3,2±0,1 g iki 14,3±0,1 g, galiuko tvirtumas (tip load) nuo 0,8g iki 1,5g. 3±1 cm ilgio lankstus ir atraumatinis rentgeno kontrastinis galiukas. Specialus ne mažiau 30 cm hidrofilinis padengimas distalinėje dalyje užtikrina optimalų vielos slidumą, kontakte su skysčiais viela nepakeičia savo diametro. Ilgis nuo 190 cm iki 300 cm. Galo forma (Perkančiosios organizacijos pasirinkimu): J arba tiesi. | D62: vnt. | E62: 1000
F63: PVM suma, Eur
F64: Orientacinė suma su PVM, Eur
B65: Orientacinė suma su PVM, Eur žodžiais:
A66: 15. | B66: PTKA viela subtotalinėms stenozėms | C66: Pagamintos iš platinos ir nerūdijančio plieno ar lygiaverčio lydinio spiralių, kurios viena su kita šonais nesulydytos. Vielos šerdis vienalyčio lydinio (monolitinė) tolygiam ir kontroliuojamam sukimo judesiui perduoti: operatoriui pasukus vielą 360° tiek pat pasisuka ir arterijoje esantis galiukas. Vielų storis 0,014 colio, ilgis – nuo 180 cm iki 300 cm. Galimybė prijungti vielą pratęsėją (iki 150 cm ilgio). Tiesūs ar J formos galiukai. Modifikacijos: a) universalios: galiuko kietumas nuo 0,8 g iki 1,0 g, hidrofilinis, nuo 3 cm iki 16 cm rentgeno kontrastiškas; PTFE danga proksimaliau; b) lėtinėms visiškoms okliuzijoms: galiuko kietumas nuo 3,0 g iki 12,0 g; galiukas nuo 3 cm iki 11 cm rentgeno kontrastiškas; c) lėtinėms okliuzijoms smailiu galiuku: galiuko kietumas nuo 9,0 g iki 20,0 g; galiukas 17 cm iki 20 cm rentgeno kontrastiškas; galiuko storis - ne didesnis nei 0,009 colio. | D66: vnt. | E66: 1000 | F66: 81.09 | G66: 0.05 | H66: =F66*1.05 -> 85.1445 | I66: =E66*F66 -> 81090 | J66: PTCA CTO guidewires, Asahi, visi modeliai
F67: PVM suma, Eur | I67: =I68-I66 -> 4054.5
F68: Orientacinė suma su PVM, Eur | I68: =E66*H66 -> 85144.5
B69: Orientacinė suma su PVM, Eur žodžiais: | D69: =suma_zodziais(I68) -> Aštuoniasdešimt penki tūkstančiai vienas šimtas keturiasdešimt keturi eurai 50 ct
A70: 16. | B70: Hidrofilinė dviejų dalių konstrukcijos PTKA viela totalinėms ir subtotalinėms okliuzijoms | C70: Ilgis ne mažiau 180 cm, 0,014 colio diametro. Dviejų dalių konstrukcija, dalys turi būti sujungtos tiesiogine jungtimi, virš jungties - silikonine danga. Distalinės vielos dalies šerdis, ne mažiau 400 mm turi būti pagaminta iš nitinolio (nikelis + titanas) ar lygiavertės medžiagos. Proksimalinės vielos dalies šerdis turi būti pagaminta iš standaus, nerūdijančio plieno ar lygiaverčio lydinio. 25 cm distalinio vielos galo šerdis turi būti padengta nerūdijančio plieno vijomis ir distalinė jo dalis vijomis, pagamintomis iš platinos. 25 cm ilgio distalinė vielos dalis turi būti padengta hidrofiline danga. Visa viela, išskyrus galiuką, turi būti padengta specialia, gerą slidumą garantuojančia, PTFE danga. Vielos galiuko apkrova lygi 1±0,1 g. | D70: vnt. | E70: 1000
F71: PVM suma, Eur
F72: Orientacinė suma su PVM, Eur
B73: Orientacinė suma su PVM, Eur žodžiais:
A74: 17. | B74: PTKA viela totalinėms okliuzijoms | C74: Vientisa tolygiai smailėjanti šerdies konstrukcija su rentgeno kontrastinėmis vijomis distaliniame gale. Vielos šerdis pagaminta iš plieno ar lygiaverčio lydinio. Ne mažiau 30 cm hidrofilinė danga distalinėje dalyje užtikrina optimalų vielos slidumą, hidrofobinė danga proksimalinėje vielos dalyje užtikrina vielos tikslų pasukimą, kontaktuodama su skysčiais viela nekeičia diametro (no swelling). Papildoma polimerinė mova gale ir polimeru nedengtas 0,5±0,1cm vielos galiukas – ypatingam vielos jautrumui išlaikyti. Dengtos polimeru, 0,014 colio diametro ir nuo 190 cm iki 300 cm ilgio. Galiukas tiesus arba smailėjantis, jo diametras priklausomai nuo vielos tvirtumo taikant „step up“ metodiką nuo 0,009 iki 0,012 colio, didžiausias standumas galiuke, mažėjantis tolyn nuo jo. Vielos galiuko tvirtumas nuo 4,8 g iki 13,9 g. Vielos galiuko veikimo jėga (support) ne mažiau 8,7g. | D74: vnt. | E74: 1000
F75: PVM suma, Eur
F76: Orientacinė suma su PVM, Eur
B77: Orientacinė suma su PVM, Eur žodžiais:
A78: 18. | B78: Platinos ir nerūdijančio plieno lydinio PTKA viela | C78: Pagamintos iš platinos ir nerūdijančio plieno ar lygiaverčio lydinio spiralių, kurios viena su kita šonais nesulydytos. Vielos šerdis vienalyčio lydinio (monolitinė) tolygiam ir kontroliuojamam sukimo judesiui perduoti: operatoriui pasukus vielą 360° tiek pat pasisuka ir arterijoje esantis galiukas. Vielų storis – 0,014 colio, ilgis nuo 180 cm iki 300 cm, galimybė prijungti vielą pratęsėją (iki 150 cm ilgio). Tiesūs ar J formos galiukai, nuo 0,5 g iki 0,7 g hidrofilinis, iki 3±1 cm ilgio rentgenokontrastiškas. PTFE danga proksimaliau, ne mažiau 20 cm lankstus galas. | D78: vnt. | E78: 3000 | F78: 57.06 | G78: 0.05 | H78: =F78*1.05 -> 59.913 | I78: =E78*F78 -> 171180 | J78: PTCA guidewires, Asahi, visi modeliai
F79: PVM suma, Eur | I79: =I80-I78 -> 8559
F80: Orientacinė suma su PVM, Eur | I80: =E78*H78 -> 179739
B81: Orientacinė suma su PVM, Eur žodžiais: | D81: =suma_zodziais(I80) -> Vienas šimtas septyniasdešimt devyni tūkstančiai septyni šimtai trisdešimt devyni eurai 00 ct
A82: 19. | B82: Vidutinio slėgio PTKA rinkinys | C82: PTKA manometras (slėgis ne mažiau 30 atm.). Manometro vamzdelis ne trumpesnis nei 30 cm. Metalinis (0,014 colio vielai) fiksatorius - suktukas. Y jungtukas su hemostaziniu vožtuvu. PTKA vielos įvedimo adata. | D82: vnt. | E82: 9000 | H82: =F82*1.05 -> 0 | I82: =E82*F82 -> 0
F83: PVM suma, Eur | I83: =I84-I82 -> 0
F84: Orientacinė suma su PVM, Eur
B85: Orientacinė suma su PVM, Eur žodžiais:
A86: 20. | B86: Aukšto slėgio PTKA rinkinys | C86: PTKA manometras (slėgis ne mažiau 40 atm.). Metalinis (0,014 colio vielai) fiksatorius - suktukas.Y jungtukas su hemostaziniu vožtuvu. PTKA vielos įvedimo adata. | D86: vnt. | E86: 500
F87: PVM suma, Eur
F88: Orientacinė suma su PVM, Eur
B89: Orientacinė suma su PVM, Eur žodžiais:
A90: 21. | B90: PTKA ‘Y’ jungtukas | C90: Y-jungtukas su vieno paspaudimo uždarymo/atidarymo hemostazine membrana. Praplovimo atšaka su trijų krypčių kraniuku. Vielos įvedimo adata. Metalinis (0,014 colio vielai) fiksatorius – suktukas. | D90: vnt. | E90: 9000
F91: PVM suma, Eur
F92: Orientacinė suma su PVM, Eur
B93: Orientacinė suma su PVM, Eur žodžiais:
A94: 22. | B94: Dvigubas PTKA ‘Y’ jungtukas su hemostazinėmis membranomis | C94: Y-jungtukas su uždarymo/atidarymo 2 hemostazinėmis membranomis ir praplovimo atšaka su trijų krypčių kraniuku. | D94: vnt. | E94: 100
F95: PVM suma, Eur
F96: Orientacinė suma su PVM, Eur
B97: Orientacinė suma su PVM, Eur žodžiais:
A98: 23. | B98: PTKA ‘Y’ jungtukas su praplovimo atšakos prailgintoju | C98: Y-jungtukas su vienmomenčiu paspaudimo/atititraukimo hemostazine membrana. Prailginta iki 20 cm. lanksti praplovimo atšaka su trijų krypčių kraniuku. Vielos įvedimo adata. Metalinis (0,014 colio vielai) fiksatorius – suktukas. | D98: vnt. | E98: 9000
F99: PVM suma, Eur
F100: Orientacinė suma su PVM, Eur
B101: Orientacinė suma su PVM, Eur žodžiais:
A102: 24. | B102: PTKA vielos suktukas | C102: Universalus – pagamintas iš metalo, tinkamas visoms 0,014 colio diametro vieloms, steriliame įpakavime. | D102: vnt. | E102: 2000
F103: PVM suma, Eur
F104: Orientacinė suma su PVM, Eur
B105: Orientacinė suma su PVM, Eur žodžiais:
A106: 25. | B106: Angiografinė punkcinė adata | C106: Ilgis nuo 50 mm iki 70 mm, diametras 18G, 19G ir 20 G. Specialios plonasienės konstrukcijos suteikiančios adatai lankstumo. Maksimalus galimas vielos - pravedėjo diametras 0,038 colio. Adatos plokštuma pirštui atremti pagaminta iš skaidrios bespalvės permatomos medžiagos jungtyje suformuotas žymeklis - plokštuma pirštui atremti ir punkcijos krypčiai pasirinkti. | D106: vnt. | E106: 5000
F107: PVM suma, Eur
F108: Orientacinė suma su PVM, Eur
B109: Orientacinė suma su PVM, Eur žodžiais:
A110: 26. | B110: Introdiuseris su atšaka plovimui ir sklende, mini viela | C110: Distalinis galas sukietintas ir turi nupjauto kūgio formą. Įvairių diametrų nuo 4F iki 11F. Ne mažiau 11 cm ilgio. Hemostazinis vožtuvas. Ne mažiau 45 cm 0,035 colio mini viela. | D110: vnt. | E110: 5000 | F110: 7.98 | G110: 0.05 | H110: =F110*1.05 -> 8.379 | I110: =E110*F110 -> 39900 | J110: Oscor gamintojas, Adelante Sigma
F111: PVM suma, Eur | I111: =I112-I110 -> 1995
F112: Orientacinė suma su PVM, Eur | I112: =E110*H110 -> 41895
B113: Orientacinė suma su PVM, Eur žodžiais: | D113: =suma_zodziais(I112) -> Keturiasdešimt vienas tūkstantis aštuoni šimtai devyniasdešimt penki eurai 00 ct
A114: 27. | B114: Introduseris | C114: Specialios formos introduseriai užtikrinantys mažesnį krešumą: dydžiai 4,5F, 5,5F, 6,5F, 7,5F, 8,5F, ilgis 11±1 cm, 0,038 colio vielai. Introduseriai su rengenokontrastiniu galiuku: dydžiai nuo 4 F iki 8 F, ilgiai nuo 11 cm iki 23 cm, vielos ilgiai 50±2 cm, 80±2 cm, diametras nuo 0,035 colio iki 0,038 colio. Intoduseriai su plona adata nuo20G iki 21G, adatos ilgis iki 4 cm, vielos diametras nuo 0,018 colio iki 0,025 colio. Dydžiai nuo 4F iki 6F, ilgiai 7±0,5 cm, 11±0,5 cm, 23±0,5 cm. Visi introduseriai su 3 padėčių sklende. Introduserio fiksatorius besisukantis apie savo ašį. Įmovos pagal dydį yra koduotos spalva. | D114: vnt. | E114: 5000 | F114: 7.98 | G114: 0.05 | H114: =F114*1.05 -> 8.379 | I114: =E114*F114 -> 39900 | J114: Oscor gamintojas, Adelante Sigma
F115: PVM suma, Eur | I115: =I116-I114 -> 1995
F116: Orientacinė suma su PVM, Eur | I116: =E114*H114 -> 41895
B117: Orientacinė suma su PVM, Eur žodžiais: | D117: =suma_zodziais(I116) -> Keturiasdešimt vienas tūkstantis aštuoni šimtai devyniasdešimt penki eurai 00 ct
A118: 28. | B118: Introdiuseris a. radialis kateterizacijai | C118: Susidedantis iš punkcinės adatos, vielos pravedėjo ir nuo 4F iki 6 F introdiuserio. Padengtas hidrofiline danga. Introdiuserio ilgis: 7±2 cm, 12±2 cm ir 25±2 cm. Vielos pravedėjai 0,025 colio. Vielos ilgiai 50±5 cm ir 80±5 cm, galas tiesus. | D118: vnt. | E118: 10000 | F118: 7.98 | G118: 0.05 | H118: =F118*1.05 -> 8.379 | I118: =E118*F118 -> 79800 | J118: Oscor gamintojas, Adelante Sigma
F119: PVM suma, Eur | I119: =I120-I118 -> 3990
F120: Orientacinė suma su PVM, Eur | I120: =E118*H118 -> 83790
B121: Orientacinė suma su PVM, Eur žodžiais: | D121: =suma_zodziais(I120) -> Aštuoniasdešimt trys tūkstančiai septyni šimtai devyniasdešimt eurų 00 ct
A122: 29. | B122: Indrodiuseris radialinėms arterijoms su hidrofiline danga | C122: Įmovos galas plonėjantis distaliniame gale, pagerinantis dilatatoriaus – įmovos praėjimą ir sumažinatis rezistenciją punkcijos metu. Įmova padengta hidrofiline danga, ilgis 16±2 cm, 25±2 cm, vidaus diametras: nuo 5F iki 6 F (koduota pagal spalvą). Tinkančios 0,021 colio ir 0,025 colio vielai. Mini vielos ilgis nuo 45 cm iki 80 cm, galas tiesus. Adata su grioveliu, aptraukta polietileno apvalkalu pagal “Flach Back” technologiją: 0,9 x 32 mm. Komplektuojami su švirkštu. | D122: vnt. | E122: 10000 | F122: 7.98 | G122: 0.05 | H122: =F122*1.05 -> 8.379 | I122: =E122*F122 -> 79800 | J122: Oscor gamintojas, Adelante Sigma
F123: PVM suma, Eur | I123: =I124-I122 -> 3990
F124: Orientacinė suma su PVM, Eur | I124: =E122*H122 -> 83790
B125: Orientacinė suma su PVM, Eur žodžiais: | D125: =suma_zodziais(I124) -> Aštuoniasdešimt trys tūkstančiai septyni šimtai devyniasdešimt eurų 00 ct
A126: 30. | B126: Introdiuseris - nukreipėjas intervencinėms procedūroms | C126: Švelni, smailėjanti, atraumatinė dilatatoriaus viršūnėlė (2,0±0,5 cm, 5,0±0,5 cm atitinkamai 45±5 cm, 65±5 cm, 90±5 cm ilgio sistemų). Distalinė sistemos dalis (5±1 cm, 15±1 cm, 35±1 cm atitinkamai 45±5 cm, 65±5 cm, 90±5 cm ilgio sistemų) padengta spec. hidrofiline danga. Integruotas aukso rengtenokontrastinis markeris 5 mm nuo distalinio sistemos galo. PTFE vidinė sistemos danga. Nerūdijančio plieno vijų vidurinė danga, išorinė - nailono danga. Hemostatinis vožtuvas su “cross cut” (kryžminio pjovimo) silikoniniu disku. Tinkamas naudoti su 0,038 colio viela. Diametrai: nuo6 F iki 7 F. Sistemos ilgiai: 45±5 cm, 65±5 cm, 90±5 cm. Distalinio galo fomos: tiesus, “hockey stick”, “multipurpose”, RDC, LIMA. | D126: vnt. | E126: 100
F127: PVM suma, Eur
F128: Orientacinė suma su PVM, Eur
B129: Orientacinė suma su PVM, Eur žodžiais:
A130: 31. | B130: Didelio diametro kraujagyslių introdiuseris | C130: Diametras nuo 10F iki 18F. Ilgiai nuo 30 cm iki 45 cm. Su rentgenokontrastiniu markeriu gale. Įvedami su 0,035 colio ir 0,038 colio diametro viela. Su hemostaziniu vožtuvu ir diliatatoriumi. | D130: vnt. | E130: 200
F131: PVM suma, Eur
F132: Orientacinė suma su PVM, Eur
B133: Orientacinė suma su PVM, Eur žodžiais:
A134: 32. | B134: Komplektas a.radialis kateterizacijai | C134: Susidedantis iš punkcinės adatos, vielos pravedėjo ir 6F introdiuserio. Introdiuserio įmovos galas plonėjantis distaliniame gale, pagerinantis dilatatoriaus – įmovos praėjimą ir sumažinantis rezistenciją punkcijos metu. Ilgiai: 4±1 cm, 7±1cm, 10±1 cm. Tinkantys 0,018 colio ir 0,025 colio vielai. Mini viela: ilgis nuo 40 cm iki 50 cm, galas tiesus. | D134: vnt. | E134: 9000 | F134: 7.98 | G134: 0.05 | H134: =F134*1.05 -> 8.379 | I134: =E134*F134 -> 71820 | J134: Oscor gamintojas, Adelante Sigma
F135: PVM suma, Eur | I135: =I136-I134 -> 3591
F136: Orientacinė suma su PVM, Eur | I136: =E134*H134 -> 75411
B137: Orientacinė suma su PVM, Eur žodžiais: | D137: =suma_zodziais(I136) -> Septyniasdešimt penki tūkstančiai keturi šimtai vienuolika eurų 00 ct
A138: 33. | B138: PTKA nukreipėjas Nr. 1 | C138: Multisegmentinė konstrukcija, suteikianti gerą judesio kontrolę ir pozicijos stabilumą. Galiukas turi būti labai minkštas ir rentgeno kontrastinis. JR; JL; AL; AR; MP, LCB, RCB, IM, EG, HS, SBS (30, 35, 40). Didelio vidinio diametro: 5F ne mažiau 0,058 colio, 6F ne mažiau 0,071 colio, 7F ne mažiau 0,081 colio, 8F ne mažiau 0,091colio. Ilgis ne mažiau 100 cm. | D138: vnt. | E138: 1000 | F138: 49.23 | G138: 0.05 | H138: =F138*1.05 -> 51.6915 | I138: =E138*F138 -> 49230 | J138: Alvimedica gamintojas, AlviGuide Blus Plus kateteris
F139: PVM suma, Eur | I139: =I140-I138 -> 2461.5
F140: Orientacinė suma su PVM, Eur | I140: =E138*H138 -> 51691.5
B141: Orientacinė suma su PVM, Eur žodžiais: | D141: =suma_zodziais(I140) -> Penkiasdešimt vienas tūkstantis šeši šimtai devyniasdešimt vienas euras 50 ct
A142: 34. | B142: PTKA nukreipėjas Nr. 2 | C142: Multisegmentinė konstrukcija. Galiukas turi būti minkštas ir rentgenokontrastinis: Jl, JCL, XB, XBLAD, AL,XBRCA, JR, XBR, JCR, AR, NR, H-stick, JFL, JFR, RB, Barbeau, RBL, MPA, LCB, RCB. Didelio vidinio diametro: 5F ne mažiau 0,056 colio, 6F ne mažiau 0,072 colio, 7F ne mažiau 0,078 colio, 8F ne mažiau 0,088 colio. Ilgis ne mažiau 100 cm. | D142: vnt. | E142: 1000 | F142: 49.23 | G142: 0.05 | H142: =F142*1.05 -> 51.6915 | I142: =E142*F142 -> 49230 | J142: Alvimedica gamintojas, AlviGuide Blue Plus kateteris
F143: PVM suma, Eur | I143: =I144-I142 -> 2461.5
F144: Orientacinė suma su PVM, Eur | I144: =E142*H142 -> 51691.5
B145: Orientacinė suma su PVM, Eur žodžiais: | D145: =suma_zodziais(I144) -> Penkiasdešimt vienas tūkstantis šeši šimtai devyniasdešimt vienas euras 50 ct
A146: 35. | B146: PTKA kateteris nukreipėjas | C146: Multisegmentinė konstrukcija. Galiukas turi būti minkštas ir rentgenokontrastinis. JR; JL; JCL; JCR; AL; AR; MP, LCB, RCB, RDC; IMA, NOTO; HS, EBU, 3D; ERAD ir kitos kreivės. Didelio vidinio diametro: 5F ne mažiau 0,058 colio, 6F ne mažiau 0,071 colio, 7F ne mažiau 0,081 colio, 8F ne mažiau 0,090 colio. Ilgis ne mažiau 100 cm. Visų kreivių kateteriai turi turėti šonines angas (side-holes) papildomai perfuzijai procedūros metu. | D146: vnt. | E146: 10000 | F146: 49.23 | G146: 0.05 | H146: =F146*1.05 -> 51.6915 | I146: =E146*F146 -> 492300 | J146: Alvimedica gamintojas, AlviGuide Blus Plus kateteris
F147: PVM suma, Eur | I147: =I148-I146 -> 24615
F148: Orientacinė suma su PVM, Eur | I148: =E146*H146 -> 516915
B149: Orientacinė suma su PVM, Eur žodžiais: | D149: =suma_zodziais(I148) -> Penki šimtai šešiolika tūkstančių devyni šimtai penkiolika eurų 00 ct
A150: 36. | B150: Specialios paskirties PTKA nukreipėjas | C150: Multisegmentinė konstrukcija,. Galiukas turi būti minkštas ir rentgenokontrastinis. ALLRIGHT; VODA LEFT; KIMNY; MUTA LEFT; Q-CURVE; CLS; MANN; IMC; KIESZ ir kiti. Didelio vidinio diametro: 5F ne mažiau 0,058 colio, 6F ne mažiau 0,070 colio, 7F ne mažiau 0,081 colio, 8F ne mažiau 0,091 colio. Ilgis nuo 55cm iki 100 cm. | D150: vnt. | E150: 10000
F151: PVM suma, Eur
F152: Orientacinė suma su PVM, Eur
B153: Orientacinė suma su PVM, Eur žodžiais:
A154: 37. | B154: Koronarinis kateteris nukreipėjas, pritaikytas procedūroms per a. radialis | C154: Dydis: 5F, 6F, 7F. Specialios modifikacijos procedūroms per a. radialis. Ilgis nuo 90 cm iki 100 cm. Geras pralaidumas: >1000 PSI su šoninėmis skylėmis ir be jų. Didelio vidinio diametro: 5F ne mažiau 0,058 colio, 6F ne mažiau 0,071 colio, 7F ne mažiau 0,081 colio. JR; JL; AL; AR; MP, ESU Galiukas turi būti labai minkštas ir rentgenokontrastinis. Multisegmentinė konstrukcija. | D154: vnt. | E154: 1000
F155: PVM suma, Eur
F156: Orientacinė suma su PVM, Eur
B157: Orientacinė suma su PVM, Eur žodžiais:
A158: 38. | B158: Hidrofilinis koronarinis kateteriai nukreipėjas | C158: Kateteris nukreipėjas dengtas hidrofiline danga per visą ilgį. Išorinis poliamido sluoksnis užtikrina gerą kateterio formos išlaikymą. Kateteris didelio vidinio diametro, sąlygojančio aukštą skysčio srovės pralaidumą: 5F ne mažiau 0,058 colio/1,47 mm; 6F ne mažiau 0,071 colio/1,80 mm; 7Fne mažiau 0,082 colio/2,08 mm; 8F ne mažiau 0,091 colio/2,31 mm, 1:1 sukimo kontrolė, dydžiai: 5F; 6F; 7F; 8F, ilgis: ne mažiau100 cm. Modifikacijų įvairovė: AL- 0,75; 1,0; 1,5; 2,0; 3,0; AR- 1,0; 2,0; JL- 3,0; 3,5; 4,0; 4,5; 5,0; 6,0; JR- 3,0; 3,5; 4,0; 4,5; 5,0; 6,0; EBU- 3,0; 3,25; 3,5; 3,75; 4,0; 4,25; 4,5; 4,75; 5,0; XBRCA- 3,0; 3,5; 3,75; 4,0; 4,25; 4,5; MPA; HS; IM; LCB&RCB; TIG – 3,0; 3,5; 4,0; 4,5; 5. | D158: vnt. | E158: 1000
F159: PVM suma, Eur
F160: Orientacinė suma su PVM, Eur
B161: Orientacinė suma su PVM, Eur žodžiais:
A162: 39. | B162: PTKA nukreipėjo prailgintojas | C162: Dydis 6F (5F in 6F) 2 mm, ID 1,45 mm, OD 1,68 mm. Distalinio galo ilgis ne mažiau 25 cm. Proksimalinio galo tipas – plienas ‘’hypotube’’. Padengimas “Bioslide‘‘polimeras“. Apykaklės tipas: iš plieno, įspaustas polimere. | D162: vnt. | E162: 1000
F163: PVM suma, Eur
F164: Orientacinė suma su PVM, Eur
B165: Orientacinė suma su PVM, Eur žodžiais:
A166: 40. | B166: Diagnostinis koronarinis kateteris | C166: Dydis: nuo 4F iki 7F. Ilgiai: 50±2 cm, 60±2 cm; 65±2 cm, 70 ±2cm, 80±2 cm; 100±2 cm, 125±2 cm. Viela nuo 0,035 colio iki 0,038 colio. Geras pralaidumas: ne mažiau 1200 atm. Modifikacijos: JL(3,5, 4, 4,5, 5), JR (1,5, 2,0, 2,5, 3,0, 3,5, 4, 4,5, 5, 6,0), JR 3,5, JR 4,0, JR 5,0, JR 6,0 MOD; JR 3,5 ST; AL (1, 2, 3,4), AR (1, 2, 3, MOD), LCB, RCB, Pediatriniai, PS (Pigtail straight); Multi (A2, B2, A1, B1) su šoninėmis skylėmis ir be, PA (Pigtail angled145; Pigtail angled 155), IM, Brachial, SON, IMLBR1, IMLBR2, LBR1, LBR2, LBR3, RBR. Didelio vidinio diametro: 4F ne mažiau 0,042 colio (1,07 mm), 5F ne mažiau 0,046 colio (1,17 mm), 5F ne mažiau 0,052 colio (1,32 mm) didelio pralaidumo, 6F ne mažiau 0,054 colio (1,37mm), 6F ne mažiau 0,059 colio (1,49mm) didelio pralaidumo. Slėgis ne mažiau 1200 PSI. | D166: vnt. | E166: 5000 | F166: 9.05 | G166: 0.05 | H166: =F166*1.05 -> 9.5025 | I166: =E166*F166 -> 45250 | J166: Alvision, Alvimedica, visi modeliai
F167: PVM suma, Eur | I167: =I168-I166 -> 2262.5
F168: Orientacinė suma su PVM, Eur | I168: =E166*H166 -> 47512.5
B169: Orientacinė suma su PVM, Eur žodžiais: | D169: =suma_zodziais(I168) -> Keturiasdešimt septyni tūkstančiai penki šimtai dvylika eurų 50 ct
A170: 41. | B170: Specialus diagnostinis koronarinis kateteris per a.radialis | C170: Atsparumas užlinkimui – kateterio sienelėje integruotas tinklas, pagamintas iš besikryžiuojančių, dvigubų nerūdijančio plieno vijų. Išorinis diametras nuo 4F iki 6 F. Galiukas atraumatinis, labai minkštas, rentgenokontrastinis. Įvairaus ilgio (65±2 cm, 80±2 cm, 90±2 cm, 100±2 cm, 110±2 cm, 120±2 cm). Slėgis ne mažiau 1000 PSI. Anatominės modifikacijos: AL-1, 2, 3; AR- 1, 2, 3; AR JP; Judkins left – 3,5, 4,0, 5,0, 6,0; Judkins right- 3,5, 4,0, 5,0, 6,0; Straight pigtail; Angled pigtail 145º,155º, round; Curve 2,5, 3,0, 3,5, 4,0; Internal mammary- Short tip, JT tip; Bypass – left, right; Brachial – Tiger 4 cm; Tiger II; BLK, Amplatz left, right; Multipurpose; 3D. | D170: vnt. | E170: 15000 | H170: =F170*1.05 -> 0 | I170: =E170*F170 -> 0
F171: PVM suma, Eur | I171: =I172-I170 -> 0
F172: Orientacinė suma su PVM, Eur | I172: =E170*H170 -> 0
B173: Orientacinė suma su PVM, Eur žodžiais: | D173: =suma_zodziais(I172) -> Nulis eurų 00 ct
A174: 42. | B174: Diagnostinis angiografinis kateteris, sąlygojantis aukštą skysčio srovės pralaidumą | C174: Sienelės struktūra trijų sluoksnių. Vidinis sluoksnis – pagamintas iš nerūdijančio plieno vijų, užtikrinantis gerą judesio kontrolę 1:1 ir pozicijos stabilumą nuo distalaus iki proksimalaus galo. Distalinis galiukas minkštas ir atraumatinis. Nominalus diametras pigtail ir selektyviam kateteriui: 4F vidinis diametras ne mažiau 0,042 colio, skysčio pralaidumas ne mažiau16.7ml/s, 5F vidinis diametras ne mažiau 0,047 colio, skysčio pralaidumas ne mažiau 21.3ml/s, 6F vidinis diametras ne mažiau 0,057 colio, skysčio pralaidumas ne mažiau 35.0 ml/s. Selektyvių kateterių ilgis ne mažiau 100 cm, Pigtail kateterių ilgis ne mažiau 110 cm. Kateteriai įvairių modifikacijų: Judkins Left 3,5; 4,0; 4,5; 5,0; 6,0; Judkins Right 3,5; 4,0; 4,5; 5,0; 6,0; 3 DRC (Williams), SRC; Amplatz Left I; II; III; Amplatz Right I; II; Coronary Bypass Left; Coronary Bypass Right; Internal Mammary, Multipurpose A-1; A-2; B-1; B-2; Sones I, II, III, su skylutėmis šonuose - I PP, II PP; III PP; El Gamal Bypass I PP, II PP, Castillo I, II, III; Pigtail- tiesus, 145˚ ir 155˚. | D174: vnt. | E174: 1000
F175: PVM suma, Eur
F176: Orientacinė suma su PVM, Eur
B177: Orientacinė suma su PVM, Eur žodžiais:
A178: 43. | B178: Koronarinis kateteris vaikams | C178: 4-5 F dydžio, JL2; JL2,5; JR2; JR2,5 formų. | D178: vnt. | E178: 300
F179: PVM suma, Eur
F180: Orientacinė suma su PVM, Eur
B181: Orientacinė suma su PVM, Eur žodžiais:
A182: 44. | B182: Diagnostinis kateteris vaikams | C182: Kateteriai skirti širdies ertmių ir stambiųjų kraujagyslių diagnostiniams tyrimams. Įvairių modifikacijų. Išorinis diametras: 4F, 5F. Ilgis 65-125cm. Dviejų modifikacijų: su distaline skyle ir su distaline ir 2 šoninėmis skylėmis | D182: vnt. | E182: 100
F183: PVM suma, Eur
F184: Orientacinė suma su PVM, Eur
B185: Orientacinė suma su PVM, Eur žodžiais:
A186: 45. | B186: Diagnostinis periferinis kateteris | C186: Išorinis diametras nuo 4F iki 5F. Vidinis diametras 4F ne mažiau (0,040 colio/1,02 mm); 5F ne mažiau (0,046 colio/1,17 mm). Ilgiai: 65±2 cm, 90±2cm, 110±2 cm ir 125 ±2cm. Viela: nuo 0,035colio iki 0,038 colio. Modifikacijos: MOTARJEME, MOTARJEME CANE, MULTIPURPOSE A1, MW2, NEWTON (1, 2, 3, 4) OSBORN, RENAL DOUBLE CURVE, REUTER, RBI, RIM, SHEPHERD HOOK (0,8, 1), SIMMONS (1,2), STRAIGHT SELECTIVE, VERTEBRAL, SHEPHERD FLUSH, ULTRA BOLUS FLUSH, MOD. BOLUS FLUSH, PIG FLUSH, MOD. HOOK FLUSH, BENSTON (1,2), BERENSTEIN, COBRA (1,2) HH (1,3), HOCKEY STICK, HOOK (0,8, 1), KA2, MANI, MIKAELSSON, MOD. CEREBRAL, MOD. HOOK (1,2,3), MOD. SIMMONS. | D186: vnt. | E186: 100
F187: PVM suma, Eur
F188: Orientacinė suma su PVM, Eur
B189: Orientacinė suma su PVM, Eur žodžiais:
A190: 46. | B190: Diagnostinis kateteris | C190: Didelio vidinio diametro: 4F ne mažiau 0,035 colio, 5F ne mažiau 0,045 colio, 6F ne mažiau 0,056 colio. Atsparumas užlinkimui. Įvairių anatominių modifikacijų (JR, JL, AL, AR, MPA, MPB, IMA, Tiger1, TWIST, 3RDC, PIG nuo 5 iki 8 šoninių skylių, MIK, RS, ANCT, STCT, YSR, H1, SHK, STCT, RH, COBRA). Stabili pozicija įvedus. Ilgis 65-125cm. | D190: vnt. | E190: 500
F191: PVM suma, Eur
F192: Orientacinė suma su PVM, Eur
B193: Orientacinė suma su PVM, Eur žodžiais:
A194: 47. | B194: Specialus diagnostinis kateteris ventrikulografijai per a. radialis atlikti | C194: Specialiai pritaikyti procedūroms per a. radialis. Išorinis diametras nuo 4 F iki 6F, ilgu ir trumpu PIG fromos, 2 cm arba 4 cm galiuku, ne mažiau 6 šoninių skylių. Ilgiai: 110±2 cm ir 125±2cm. Viela 0,038 colio. | D194: vnt. | E194: 500
F195: PVM suma, Eur
F196: Orientacinė suma su PVM, Eur
B197: Orientacinė suma su PVM, Eur žodžiais:
A198: 48. | B198: Padidinto stangrumo specialios paskirties viela širdies kateterizacijoms | C198: Storis 0,035 colio, ilgis nuo 180 cm iki 260 cm. Amplatz Super Stiff tipo. 3 cm ir 6 cm, J formos minkštas galiukas. Viela ištisinė, be spiralinio viršutinio sluoksnio, padengta hidrofiline danga. | D198: vnt. | E198: 500
F199: PVM suma, Eur
F200: Orientacinė suma su PVM, Eur
B201: Orientacinė suma su PVM, Eur žodžiais:
... 214 more rows

Sheet Sheet2

Sheet Sheet3
